bitfinex/quotes_BTCUSD_20250618
["timestamp","ask_amount","ask_price","bid_price","bid_amount"]
[1750281066572,0.02993046,104620.0,104610.0,0.6919615]
[1750281066776,0.03948822,104620.0,104610.0,0.8598815]
[1750281066990,0.03948813,104620.0,104610.0,0.8598815]
[1750281067630,0.24977213,104620.0,104610.0,0.44808397]
[1750281067880,0.24977213,104620.0,104610.0,0.22148631]
[1750281067881,0.53665307,104620.0,104610.0,0.22148631]
[1750281068090,0.53665307,104620.0,104610.0,0.23104562]
[1750281068317,0.53565307,104620.0,104610.0,0.24060484]
[1750281068552,0.23921492,104620.0,104610.0,0.24260484]
[1750281069433,0.23921492,104620.0,104610.0,0.26172282]
[1750281069654,0.02893046,104620.0,104610.0,0.30278159]
[1750281069870,0.24877222,104620.0,104610.0,0.30278177]
[1750281070083,0.02867373,104620.0,104610.0,0.30278113]
[1750281071564,0.03823194,104620.0,104610.0,0.30278113]
[1750281072247,0.02867373,104620.0,104610.0,0.30278113]
[1750281072472,0.04779025,104620.0,104610.0,0.30278113]
[1750281072909,0.23895828,104620.0,104610.0,0.30278113]
[1750281073125,0.23895901,104620.0,104610.0,0.29322246]
[1750281073557,0.03823258,104620.0,104610.0,0.30278113]
[1750281073767,0.06737623,104620.0,104610.0,0.30278113]
[1750281074200,0.25854426,104620.0,104610.0,0.28366361]
[1750281074413,5.05,104620.0,104610.0,0.2521637]
[1750281074616,0.4971643,104620.0,104610.0,0.2219637]
[1750281074829,0.4971643,104620.0,104610.0,0.23152265]
[1750281075269,0.82760618,104620.0,104610.0,0.0021]
[1750281075567,6.01691986,104620.0,104610.0,0.0021]
[1750281075787,6.21720879,104620.0,104610.0,0.0021]
[1750281076423,6.21720879,104620.0,104610.0,0.0001]
[1750281076634,6.26568879,104620.0,104610.0,0.0001]
[1750281076836,6.26868879,104620.0,104610.0,0.0001]
[1750281077250,6.26768879,104620.0,104610.0,0.0001]
[1750281077468,6.26968879,104620.0,104610.0,0.0001]
[1750281078299,6.2990949,104620.0,104610.0,0.0001]
[1750281081044,6.2681949,104620.0,104610.0,0.0001]
[1750281081704,0.03440611,104620.0,104610.0,0.28276342]
[1750281081967,0.005,104620.0,104610.0,0.685002]
[1750281082658,0.55980101,104640.0,104630.0,0.28252139]
[1750281082886,0.04769968,104640.0,104630.0,0.29207823]
[1750281083112,0.02858672,104640.0,104630.0,0.29207823]
[1750281083359,0.48911177,104640.0,104630.0,0.29207823]
[1750281083806,0.131,104640.0,104630.0,0.29207823]
[1750281083994,0.332,104640.0,104630.0,0.29207823]
[1750281084722,0.132,104640.0,104630.0,0.29207823]
[1750281084970,0.132,104640.0,104630.0,0.68475814]
[1750281085170,0.002,104640.0,104630.0,0.68475814]
[1750281085392,0.001,104640.0,104630.0,0.68475814]
[1750281085614,0.001,104640.0,104630.0,0.68575814]
[1750281086268,0.00955493,104650.0,104640.0,0.2825001]
[1750281086483,5.88302174,104660.0,104650.0,0.21977911]
[1750281086703,5.88302174,104660.0,104650.0,0.28407911]
[1750281086704,0.34,104660.0,104650.0,0.28407911]
[1750281086917,0.35910839,104660.0,104650.0,0.28407911]
[1750281087129,0.35910839,104660.0,104650.0,0.28407929]
[1750281087130,0.58601919,104660.0,104650.0,0.28407929]
[1750281087338,0.58601919,104660.0,104650.0,0.2936344]
[1750281087564,0.88245734,104660.0,104650.0,0.2936344]
[1750281087782,0.88245734,104660.0,104650.0,0.30318942]
[1750281088023,0.66510101,104660.0,104650.0,0.30318942]
[1750281088292,0.98619662,104660.0,104650.0,0.23286889]
[1750281088503,0.98619662,104660.0,104650.0,0.24242446]
[1750281088706,0.98619662,104660.0,104650.0,0.0322]
[1750281088922,0.98919662,104660.0,104650.0,0.0322]
[1750281089412,0.69275847,104660.0,104650.0,0.04175566]
[1750281089654,0.98919653,104660.0,104650.0,0.22331323]
[1750281089870,0.98164224,104660.0,104650.0,0.0322]
[1750281090600,0.98903692,104660.0,104650.0,0.0322]
[1750281092530,0.21022354,104650.0,104640.0,0.44042381]
[1750281093030,0.21977892,104650.0,104640.0,0.44997974]
[1750281093289,0.22933421,104650.0,104640.0,0.44042381]
[1750281093515,0.22933421,104650.0,104640.0,0.20068788]
[1750281093516,0.51621789,104650.0,104640.0,0.20068788]
[1750281093721,0.50666187,104650.0,104640.0,0.28030001]
[1750281093930,0.50666187,104650.0,104640.0,0.2803001]
[1750281093931,0.21022372,104650.0,104640.0,0.2803001]
[1750281094144,0.21977938,104650.0,104640.0,0.27074418]
[1750281094352,0.21977938,104650.0,104640.0,0.26118788]
[1750281094576,0.22077938,104650.0,104640.0,0.25163149]
[1750281094782,0.51721753,104650.0,104640.0,0.26118797]
[1750281094991,0.51821753,104650.0,104640.0,0.28030066]
[1750281095206,0.64821753,104650.0,104640.0,0.26118806]
[1750281095434,0.64821753,104650.0,104640.0,0.28030056]
[1750281095650,0.64821744,104650.0,104640.0,0.28030056]
[1750281096094,0.35177929,104650.0,104640.0,0.28030056]
[1750281096313,0.64821744,104650.0,104640.0,0.27074436]
[1750281096730,0.64821744,104650.0,104640.0,0.28030056]
[1750281097586,0.64821744,104650.0,104640.0,0.26118806]
[1750281097794,0.64821744,104650.0,104640.0,0.28030074]
[1750281098003,0.64821744,104650.0,104640.0,0.28985704]
[1750281098484,0.64821744,104650.0,104640.0,0.28985713]
[1750281098696,0.64821744,104650.0,104640.0,0.28985723]
[1750281098934,0.64821744,104650.0,104640.0,0.29941343]
[1750281099143,0.64821744,104650.0,104640.0,0.29941297]
[1750281099359,0.64821744,104650.0,104640.0,0.29941251]
[1750281099578,0.16066497,104650.0,104640.0,0.29941205]
[1750281099798,0.65777246,104650.0,104640.0,0.27074436]
[1750281100009,0.65777246,104650.0,104640.0,0.26118806]
[1750281100226,0.65777319,104650.0,104640.0,0.27074445]
[1750281100439,0.64821753,104650.0,104640.0,0.28030065]
[1750281100652,0.64821753,104650.0,104640.0,0.28985658]
[1750281101032,0.4571043,104650.0,104640.0,0.28985658]
[1750281101300,0.65777319,104650.0,104640.0,0.28985676]
[1750281101505,0.65777319,104650.0,104640.0,0.29941278]
[1750281101838,0.64821753,104650.0,104640.0,0.27074408]
[1750281102111,0.65777319,104650.0,104640.0,0.28030019]
[1750281102585,0.64821753,104650.0,104640.0,0.29941214]
[1750281103524,0.44754873,104650.0,104640.0,0.29941214]
[1750281103751,0.45710366,104650.0,104640.0,0.29941214]
[1750281103982,0.66732793,104650.0,104640.0,0.29941214]
[1750281104211,0.46665913,104650.0,104640.0,0.29941214]
[1750281105286,0.45710366,104650.0,104640.0,0.29941214]
[1750281105741,0.65777236,104650.0,104640.0,0.29941214]
[1750281105991,0.45710366,104650.0,104640.0,0.29941214]
[1750281106263,0.65777246,104650.0,104640.0,0.29941214]
[1750281106729,0.65777246,104650.0,104640.0,0.44810019]
[1750281106976,0.66732812,104650.0,104640.0,0.44810019]
[1750281107467,0.65777319,104650.0,104640.0,0.25163149]
[1750281107701,0.65777319,104650.0,104640.0,0.43854418]
[1750281107943,0.65777319,104650.0,104640.0,0.42898788]
[1750281108237,0.65777319,104650.0,104640.0,0.43854418]
[1750281108702,0.65777319,104650.0,104640.0,0.44810029]
[1750281108934,0.64821753,104650.0,104640.0,0.44810029]
[1750281109169,0.34222381,104650.0,104640.0,0.45765631]
[1750281109403,0.64821743,104650.0,104640.0,0.45765631]
[1750281109885,0.42843815,104650.0,104640.0,0.45765631]
[1750281110124,0.43799335,104650.0,104640.0,0.45765631]
[1750281110358,0.30799335,104650.0,104640.0,0.45765631]
[1750281110595,0.32590288,104650.0,104640.0,0.45765631]
[1750281111057,0.53612687,104650.0,104640.0,0.45765631]
[1750281111270,0.34501319,104650.0,104640.0,0.45765631]
[1750281111477,0.54568189,104650.0,104640.0,0.45765631]
[1750281112344,0.36353073,104650.0,104640.0,0.45765631]
[1750281112770,0.36353073,104650.0,104640.0,0.45765649]
[1750281112771,0.56419962,104650.0,104640.0,0.45765649]
[1750281113021,0.5546446,104650.0,104640.0,0.43854418]
[1750281113439,0.5546446,104650.0,104640.0,0.44810038]
[1750281114577,0.53553411,104650.0,104640.0,0.43854436]
[1750281114796,0.53553411,104650.0,104640.0,0.0605]
[1750281115008,0.53553411,104650.0,104640.0,0.37800454]
[1750281115215,0.53553411,104650.0,104640.0,0.38756093]
[1750281115430,0.53553411,104650.0,104640.0,0.39711723]
[1750281115652,0.66553411,104650.0,104640.0,0.40667343]
[1750281116076,0.65659123,104650.0,104640.0,0.40667297]
[1750281116285,0.36911748,104650.0,104640.0,0.38756066]
[1750281116507,0.66555563,104650.0,104640.0,0.39711686]
[1750281116731,0.028674,104620.0,104610.0,0.30339209]
[1750281116978,1.06465142,104620.0,104610.0,0.0001]
[1750281117203,6.2509148,104620.0,104610.0,0.0001]
[1750281117436,6.07937414,104620.0,104610.0,0.0001]
[1750281117664,6.10975241,104620.0,104610.0,0.0001]
[1750281117890,6.29457241,104620.0,104610.0,0.0001]
[1750281118127,6.29757241,104620.0,104610.0,0.0001]
[1750281118770,6.29751316,104620.0,104610.0,0.0001]
[1750281118985,6.33001316,104620.0,104610.0,0.0001]
[1750281120277,6.08267573,104620.0,104610.0,0.0001]
[1750281120543,6.27384376,104620.0,104610.0,0.0001]
[1750281120989,0.22944383,104600.0,104590.0,0.44099778]
[1750281121745,0.21988361,104600.0,104590.0,0.46011941]
[1750281122043,0.22944374,104600.0,104590.0,0.46011941]
[1750281122277,0.21988361,104600.0,104590.0,0.46211941]
[1750281122496,0.21988361,104600.0,104590.0,0.47268]
[1750281122729,0.56944383,104600.0,104590.0,0.45355864]
[1750281122968,0.56944383,104600.0,104590.0,0.44399778]
[1750281123171,0.56944383,104600.0,104590.0,0.43444392]
[1750281123380,0.56944383,104600.0,104590.0,0.45356546]
[1750281123381,0.55988361,104600.0,104590.0,0.45356546]
[1750281123593,0.55988361,104600.0,104590.0,0.44400478]
[1750281123829,0.56944383,104600.0,104590.0,0.44400478]
[1750281124260,0.57670226,104600.0,104590.0,0.45356555]
[1750281124488,0.58626239,104600.0,104590.0,0.0659]
[1750281124715,0.58626239,104600.0,104590.0,0.17082]
[1750281124716,0.86358146,104600.0,104590.0,0.17082]
[1750281125177,0.89231546,104600.0,104590.0,0.20312]
[1750281125627,0.89231546,104600.0,104590.0,0.43440383]
[1750281125844,0.92111985,104600.0,104590.0,0.42484287]
[1750281126062,0.6246817,104600.0,104590.0,0.24318114]
[1750281126292,0.92111985,104600.0,104590.0,0.23362]
[1750281126557,0.92111985,104600.0,104590.0,0.43440401]
[1750281126771,0.6246817,104600.0,104590.0,0.44396497]
[1750281126988,0.92111985,104600.0,104590.0,0.44396497]
[1750281127427,0.92111985,104600.0,104590.0,0.45352574]
[1750281127642,0.92111985,104600.0,104590.0,0.44396497]
[1750281128151,0.92111985,104600.0,104590.0,0.44396506]
[1750281128542,0.92111985,104600.0,104590.0,0.45352592]
[1750281128756,0.92111985,104600.0,104590.0,0.4630866]
[1750281128970,0.92111985,104600.0,104590.0,0.46308669]
[1750281129199,0.93068007,104600.0,104590.0,0.45352602]
[1750281129431,0.93068007,104600.0,104590.0,0.44396506]
[1750281130060,0.69359695,104600.0,104590.0,0.23362]
[1750281130273,0.88480153,104600.0,104590.0,0.24318114]
[1750281130489,0.89436148,104600.0,104590.0,0.25274219]
[1750281130716,0.89436148,104600.0,104590.0,0.24318114]
[1750281131370,0.89436148,104600.0,104590.0,0.23362]
[1750281131577,0.88480153,104600.0,104590.0,0.20312]
[1750281131808,0.88480153,104600.0,104590.0,0.41346469]
[1750281132017,0.88480153,104600.0,104590.0,0.40390392]
[1750281132222,0.88480153,104600.0,104590.0,0.0354]
[1750281132433,0.88480153,104600.0,104590.0,0.0031]
[1750281132848,0.88480153,104600.0,104590.0,0.21344506]
[1750281133088,0.88480153,104600.0,104590.0,0.23256688]
[1750281133534,0.88480153,104600.0,104590.0,0.0031]
[1750281133745,0.88480153,104600.0,104590.0,0.01266114]
[1750281134410,0.88480153,104600.0,104590.0,0.0031]
[1750281134633,0.88480153,104600.0,104590.0,0.02222219]
[1750281134836,0.88480153,104600.0,104590.0,0.0031]
[1750281135914,0.88480135,104600.0,104590.0,0.20388401]
[1750281136119,0.88480135,104600.0,104590.0,0.28330602]
[1750281136330,0.88480135,104600.0,104590.0,0.07296114]
[1750281136545,0.88480135,104600.0,104590.0,0.26418392]
[1750281136759,0.88480135,104600.0,104590.0,0.26418401]
[1750281137003,0.88480135,104600.0,104590.0,0.27374506]
[1750281137229,0.88480135,104600.0,104590.0,0.28330583]
[1750281137230,0.70315554,104600.0,104590.0,0.28330583]
[1750281137444,0.70315563,104600.0,104590.0,0.29286633]
[1750281137656,0.71271567,104600.0,104590.0,0.29286642]
[1750281137871,0.91348038,104600.0,104590.0,0.30242692]
[1750281138303,0.91348038,104600.0,104590.0,0.28330583]
[1750281138526,0.90392098,104600.0,104590.0,0.28330583]
[1750281138731,0.9134812,104600.0,104590.0,0.3024271]
[1750281138946,0.90392098,104600.0,104590.0,0.3024271]
[1750281139152,0.90392098,104600.0,104590.0,0.30242646]
[1750281139362,0.70315627,104600.0,104590.0,0.30242646]
[1750281139596,0.90392098,104600.0,104590.0,0.30242646]
[1750281139812,0.38991482,104600.0,104590.0,0.30242646]
[1750281140022,0.09347667,104600.0,104590.0,0.30242646]
[1750281140242,0.58991482,104600.0,104590.0,0.30242646]
[1750281140461,0.39947486,104600.0,104590.0,0.30242646]
[1750281141167,0.60979979,104600.0,104590.0,0.29286596]
[1750281141378,0.59067944,104600.0,104590.0,0.30242646]
[1750281141584,0.39947486,104600.0,104590.0,0.30242646]
[1750281142006,0.59067944,104600.0,104590.0,0.30242646]
[1750281142680,0.93067944,104600.0,104590.0,0.30242646]
[1750281142901,0.07435704,104600.0,104590.0,0.30242646]
[1750281143116,0.34,104610.0,104600.0,0.21988415]
[1750281143325,0.34,104610.0,104600.0,0.54640591]
[1750281143983,0.01674277,104610.0,104600.0,0.54640591]
[1750281144406,0.35328058,104620.0,104610.0,0.28246315]
[1750281144852,0.34372273,104620.0,104610.0,0.28246315]
[1750281145078,0.37239673,104620.0,104610.0,0.28246315]
[1750281145705,0.37439664,104620.0,104610.0,0.28246315]
[1750281146152,0.71439664,104620.0,104610.0,0.28246315]
[1750281146577,0.72967953,104620.0,104610.0,0.28246315]
[1750281147017,0.7201215,104620.0,104610.0,0.28246315]
[1750281147243,0.37056347,104620.0,104610.0,0.28246315]
[1750281147736,0.37356347,104620.0,104610.0,0.28246315]
[1750281147949,0.73267962,104620.0,104610.0,0.28246315]
[1750281148163,0.73267953,104620.0,104610.0,0.28246315]
[1750281148369,0.72312141,104620.0,104610.0,0.28246315]
[1750281149709,0.73267953,104620.0,104610.0,0.28246315]
[1750281150143,0.73268017,104620.0,104610.0,0.28246315]
[1750281151093,0.72312196,104620.0,104610.0,0.28246315]
[1750281151306,0.71356384,104620.0,104610.0,0.28246315]
[1750281151520,0.72312187,104620.0,104610.0,0.28246315]
[1750281151948,0.71356384,104620.0,104610.0,0.28246315]
[1750281152161,0.74229184,104620.0,104610.0,0.28246315]
[1750281152367,0.7327339,104620.0,104610.0,0.28246315]
[1750281152626,0.41718023,104620.0,104610.0,0.28246315]
[1750281152812,0.69444795,104620.0,104610.0,0.28246315]
[1750281153269,0.68489038,104620.0,104610.0,0.28246315]
[1750281153481,0.36028289,104620.0,104610.0,0.37870491]
[1750281153934,0.65672104,104620.0,104610.0,0.37870491]
[1750281154149,0.63943815,104620.0,104610.0,0.37870491]
[1750281154366,0.29643815,104620.0,104610.0,0.54626491]
[1750281154781,0.29743815,104620.0,104610.0,0.54626491]
[1750281155889,0.31655357,104620.0,104610.0,0.27290448]
[1750281156145,0.35123952,104620.0,104610.0,0.44998315]
[1750281156397,0.35123943,104620.0,104610.0,0.44998315]
[1750281156624,0.89196567,104620.0,104610.0,0.44998315]
[1750281156878,0.8919665,104620.0,104610.0,0.44998315]
[1750281157085,0.68168186,104620.0,104610.0,0.44998315]
[1750281157779,0.68168186,104620.0,104610.0,0.25378631]
[1750281157780,1.16928859,104620.0,104610.0,0.25378631]
[1750281158005,0.56685435,104620.0,104610.0,0.36826544]
[1750281158222,0.56685435,104620.0,104610.0,0.3778242]
[1750281158223,0.8632925,104620.0,104610.0,0.3778242]
[1750281158447,0.88240847,104620.0,104610.0,0.39694182]
[1750281158669,1.17884717,104620.0,104610.0,0.36826544]
[1750281158888,1.17884717,104620.0,104610.0,0.37782439]
[1750281159305,1.17884717,104620.0,104610.0,0.21030439]
[1750281159516,1.17884717,104620.0,104610.0,0.37778439]
[1750281160459,1.17884717,104620.0,104610.0,0.20990439]
[1750281160669,1.16928905,104620.0,104610.0,0.36782544]
[1750281161552,1.16928905,104620.0,104610.0,0.37738448]
[1750281161758,1.16928905,104620.0,104610.0,0.38694343]
[1750281163039,1.16928905,104620.0,104610.0,0.39650228]
[1750281163250,1.16928905,104620.0,104610.0,0.40606104]
[1750281163462,0.8728509,104620.0,104610.0,0.40606104]
[1750281163657,0.8728509,104620.0,104610.0,0.39650228]
[1750281163904,0.8907391,104620.0,104610.0,0.39650228]
[1750281164571,0.8907391,104620.0,104610.0,0.40606104]
[1750281164785,0.88118089,104620.0,104610.0,0.19078631]
[1750281164998,0.88118089,104620.0,104610.0,0.36778526]
[1750281165488,0.67089615,104620.0,104610.0,0.44870324]
[1750281165702,1.17761848,104620.0,104610.0,0.39898544]
[1750281166128,1.17761848,104620.0,104610.0,0.36818544]
[1750281166336,1.16806054,104620.0,104610.0,0.37770475]
[1750281166569,1.29806054,104620.0,104610.0,0.37770475]
[1750281166808,1.29806054,104620.0,104610.0,0.3872637]
[1750281167058,0.94149074,104620.0,104610.0,0.3872637]
[1750281167301,0.64505259,104620.0,104610.0,0.39682255]
[1750281167518,0.64505259,104620.0,104610.0,0.22942255]
[1750281167761,0.64505259,104620.0,104610.0,0.3872637]
[1750281168209,0.94149074,104620.0,104610.0,0.37770475]
[1750281168675,0.01911944,104600.0,104590.0,0.2742446]
[1750281168910,0.33467721,104600.0,104590.0,0.46076596]
[1750281169980,0.33467721,104600.0,104590.0,0.29336596]
[1750281170223,0.33467712,104600.0,104590.0,0.46776596]
[1750281170915,0.34423725,104600.0,104590.0,0.46772596]
[1750281171145,0.33467712,104600.0,104590.0,0.46772596]
[1750281171597,0.33467712,104600.0,104590.0,0.46072596]
[1750281171868,0.53544256,104600.0,104590.0,0.45116546]
[1750281172112,0.53544256,104600.0,104590.0,0.46172596]
[1750281172360,0.31555759,104600.0,104590.0,0.46172596]
[1750281172591,0.32511763,104600.0,104590.0,0.46172596]
[1750281172822,0.31555759,104600.0,104590.0,0.46172596]
[1750281173056,0.3155575,104600.0,104590.0,0.46172596]
[1750281173790,0.32511736,104600.0,104590.0,0.46372596]
[1750281175161,0.3155575,104600.0,104590.0,0.46372596]
[1750281175391,0.3155575,104600.0,104590.0,0.43308596]
[1750281175640,0.51632212,104600.0,104590.0,0.42352546]
[1750281175875,0.33467767,104600.0,104590.0,0.43308596]
[1750281176128,0.33467767,104600.0,104590.0,0.46338596]
[1750281176827,0.52588225,104600.0,104590.0,0.46338596]
[1750281177059,0.88379292,104600.0,104590.0,0.45382564]
[1750281177522,0.86588289,104600.0,104590.0,0.46338632]
[1750281178292,0.86588289,104600.0,104590.0,0.47294691]
[1750281178390,0.64648297,104600.0,104590.0,0.47294691]
[1750281178604,0.64648297,104600.0,104590.0,0.46338632]
[1750281179522,0.6369232,104600.0,104590.0,0.42352564]
[1750281179791,0.6369232,104600.0,104590.0,0.003]
[1750281180013,0.63570641,104600.0,104590.0,0.37106401]
[1750281180642,0.83720295,104600.0,104590.0,0.37106401]
[1750281180861,0.83720295,104600.0,104590.0,0.38062497]
[1750281181069,0.85510297,104600.0,104590.0,0.37102401]
[1750281181277,0.85510297,104600.0,104590.0,0.17024]
[1750281181278,0.84554275,104600.0,104590.0,0.17024]
[1750281181700,0.84554275,104600.0,104590.0,0.003]
[1750281181909,0.84554275,104600.0,104590.0,0.17024]
[1750281182970,0.8522528,104600.0,104590.0,0.17024]
[1750281183652,0.8522528,104600.0,104590.0,0.003]
[1750281185546,0.8522528,104600.0,104590.0,0.20378401]
[1750281185752,0.8522575,104600.0,104590.0,0.21334497]
[1750281186389,0.8522575,104600.0,104590.0,0.20378401]
[1750281186608,0.8522575,104600.0,104590.0,0.22290602]
[1750281186817,0.88093725,104600.0,104590.0,0.25540602]
[1750281187031,0.88093725,104600.0,104590.0,0.26496688]
[1750281187743,0.87137776,104600.0,104590.0,0.24584506]
[1750281187979,0.87137776,104600.0,104590.0,0.25540602]
[1750281188447,0.87137692,104600.0,104590.0,0.25540602]
[1750281188880,0.87137692,104600.0,104590.0,0.26496688]
[1750281189091,0.87137692,104600.0,104590.0,0.25540583]
[1750281189304,0.57493877,104600.0,104590.0,0.25540583]
[1750281189515,0.87137692,104600.0,104590.0,0.26496651]
[1750281189953,0.87137692,104600.0,104590.0,0.25540583]
[1750281190410,0.87137692,104600.0,104590.0,0.23628401]
[1750281190624,0.87137692,104600.0,104590.0,0.25540602]
[1750281191063,0.87137692,104600.0,104590.0,0.26496688]
[1750281191306,0.87137989,104600.0,104590.0,0.27452756]
[1750281192159,0.87137989,104600.0,104590.0,0.27452765]
[1750281192380,0.84676299,104600.0,104590.0,0.27452765]
[1750281192601,0.87137984,104600.0,104590.0,0.27452765]
[1750281193334,0.87137984,104600.0,104590.0,0.27452719]
[1750281194193,0.87138581,104600.0,104590.0,0.27452719]
[1750281195021,0.68018078,104600.0,104590.0,0.27452719]
[1750281195231,0.68974091,104600.0,104590.0,0.30702664]
[1750281195442,0.89050571,104600.0,104590.0,0.30702664]
[1750281196058,0.89050571,104600.0,104590.0,0.29746614]
[1750281196382,0.8837904,104600.0,104590.0,0.30702673]
[1750281196607,0.89050762,104600.0,104590.0,0.30702673]
[1750281197268,0.69930304,104600.0,104590.0,0.30702627]
[1750281197480,0.39330467,104600.0,104590.0,0.30702627]
[1750281197688,0.89050762,104600.0,104590.0,0.30702627]
[1750281198299,0.89050762,104600.0,104590.0,0.28790518]
[1750281198786,0.88094785,104600.0,104590.0,0.28790518]
[1750281199522,0.88094785,104600.0,104590.0,0.27834487]
[1750281199765,0.8534803,104600.0,104590.0,0.27834487]
[1750281199975,0.8534803,104600.0,104590.0,0.28790564]
[1750281199976,0.87140741,104600.0,104590.0,0.28790564]
[1750281200744,0.86184728,104600.0,104590.0,0.23628401]
[1750281200943,0.86184728,104600.0,104590.0,0.24584497]
[1750281202434,0.86184728,104600.0,104590.0,0.2649666]
[1750281202662,0.86184728,104600.0,104590.0,0.2964666]
[1750281202914,0.86184728,104600.0,104590.0,0.30602728]
[1750281203804,0.86184728,104600.0,104590.0,0.27734506]
[1750281204015,0.86184728,104600.0,104590.0,0.28690602]
[1750281205345,0.84392413,104600.0,104590.0,0.29646688]
[1750281205598,0.86185661,104600.0,104590.0,0.29646688]
[1750281208186,0.86186341,104600.0,104590.0,0.29646688]
[1750281208832,0.86186341,104600.0,104590.0,0.30602765]
[1750281209048,1.15852686,104600.0,104590.0,0.30602719]
[1750281209484,1.15852686,104600.0,104590.0,0.30602673]
[1750281209713,0.36466046,104600.0,104590.0,0.30602627]
[1750281209980,0.9768815,104600.0,104590.0,0.26778373]
[1750281210209,1.46463743,104600.0,104590.0,0.23628401]
[1750281210429,1.46463743,104600.0,104590.0,0.24584487]
[1750281210663,1.16808663,104600.0,104590.0,0.25540555]
[1750281210862,0.87155433,104600.0,104590.0,0.25540555]
[1750281211068,0.8715569,104600.0,104590.0,0.25540555]
[1750281211278,0.88111712,104600.0,104590.0,0.25540555]
[1750281211494,0.88111712,104600.0,104590.0,0.24584487]
[1750281211944,0.58454782,104600.0,104590.0,0.25540564]
[1750281212159,0.88111712,104600.0,104590.0,0.25540564]
[1750281213790,0.5411259,104600.0,104590.0,0.25540564]
[1750281214163,0.5411259,104600.0,104590.0,0.27674487]
[1750281214376,0.5411259,104600.0,104590.0,0.28630564]
[1750281214792,0.33080133,104600.0,104590.0,0.24584487]
[1750281214996,0.53156604,104600.0,104590.0,0.23628401]
[1750281215204,6.09146619,104600.0,104590.0,0.003]
[1750281215420,6.01615675,104600.0,104590.0,0.003]
[1750281215657,6.05958745,104600.0,104590.0,0.003]
[1750281216074,6.35615675,104600.0,104590.0,0.003]
[1750281216359,6.56963675,104600.0,104590.0,0.002]
[1750281216570,6.6996404,104600.0,104590.0,0.002]
[1750281216982,0.20078401,104590.0,104580.0,0.2103638]
[1750281217188,0.81859807,104590.0,104580.0,0.20080184]
[1750281218238,1.15859807,104590.0,104580.0,0.003]
[1750281218415,0.95242686,104590.0,104580.0,0.003]
[1750281218620,1.14364973,104590.0,104580.0,0.003]
[1750281218818,1.15321087,104590.0,104580.0,0.003]
[1750281219577,1.15319648,104590.0,104580.0,0.003]
[1750281220004,1.15319648,104590.0,104580.0,0.19424115]
[1750281220260,1.15319648,104590.0,104580.0,0.2038032]
[1750281220879,1.15319648,104590.0,104580.0,0.24646516]
[1750281221085,0.87157524,104590.0,104580.0,0.28872694]
[1750281221512,0.87157524,104590.0,104580.0,0.27916516]
[1750281221719,1.15858368,104590.0,104580.0,0.24646516]
[1750281222141,1.15858031,104590.0,104580.0,0.24646516]
[1750281222789,1.15858031,104590.0,104580.0,0.24546516]
[1750281223171,1.14901917,104590.0,104580.0,0.27596516]
[1750281223395,1.14901917,104590.0,104580.0,0.27396516]
[1750281223937,1.14901917,104590.0,104580.0,0.24346516]
[1750281224870,1.14900562,104590.0,104580.0,0.24346516]
[1750281225280,0.54080302,104580.0,104570.0,0.0615]
[1750281225460,0.37420602,104580.0,104570.0,0.26232232]
[1750281225667,0.98646754,104580.0,104570.0,0.28144725]
[1750281225936,1.18727138,104580.0,104570.0,0.27188492]
[1750281226121,1.19683316,104580.0,104570.0,0.28144734]
[1750281226331,1.18727156,104580.0,104570.0,0.27188492]
[1750281226528,1.18727156,104580.0,104570.0,0.28144734]
[1750281226704,1.18727156,104580.0,104570.0,0.28344734]
[1750281227463,1.17770978,104580.0,104570.0,0.26432232]
[1750281227675,1.17770367,104580.0,104570.0,0.26532232]
[1750281227865,1.1681418,104580.0,104570.0,0.26532232]
[1750281228565,1.14901779,104580.0,104570.0,0.0645]
[1750281229141,1.14901779,104580.0,104570.0,0.0031]
[1750281229360,1.31557779,104580.0,104570.0,0.0031]
[1750281229595,1.31557583,104580.0,104570.0,0.0031]
[1750281229832,6.49461759,104580.0,104570.0,0.0031]
[1750281230037,6.52551759,104580.0,104570.0,0.0031]
[1750281230482,6.52551794,104580.0,104570.0,0.0031]
[1750281230697,6.52551794,104580.0,104570.0,0.0011]
[1750281231145,6.65551794,104580.0,104570.0,0.0001]
[1750281232473,6.62461794,104580.0,104570.0,0.0001]
[1750281233143,6.59998151,104580.0,104570.0,0.0001]
[1750281233366,6.62459773,104580.0,104570.0,0.0001]
[1750281235017,6.72074695,104580.0,104570.0,0.0001]
[1750281235249,6.75194695,104580.0,104570.0,0.0001]
[1750281235929,0.86859152,104570.0,104560.0,0.0001]
[1750281236139,1.15591967,104570.0,104560.0,0.0001]
[1750281236591,6.56423497,104570.0,104560.0,0.0001]
[1750281237051,6.66038419,104570.0,104560.0,0.0001]
[1750281237281,6.56423497,104570.0,104560.0,0.0001]
[1750281237718,6.56623497,104570.0,104560.0,0.0001]
[1750281238140,6.26966567,104570.0,104560.0,0.0001]
[1750281238354,0.55042526,104550.0,104540.0,0.27604235]
[1750281238563,1.14356386,104550.0,104540.0,0.27604244]
[1750281238946,1.14356386,104550.0,104540.0,0.28560788]
[1750281239157,1.14356386,104550.0,104540.0,0.29517323]
[1750281239407,1.14356386,104550.0,104540.0,0.30473848]
[1750281239632,1.1705221,104550.0,104540.0,0.30473848]
[1750281240308,0.88351714,104550.0,104540.0,0.29717277]
[1750281240566,1.18008644,104550.0,104540.0,0.27804217]
[1750281240787,1.19887737,104550.0,104540.0,0.27904217]
[1750281240998,1.18931285,104550.0,104540.0,0.26947673]
[1750281241210,1.18931285,104550.0,104540.0,0.26947682]
[1750281241439,1.17974805,104550.0,104540.0,0.0686]
[1750281241656,1.17974805,104550.0,104540.0,0.26948003]
[1750281242112,0.89274281,104550.0,104540.0,0.288611]
[1750281242998,0.89274281,104550.0,104540.0,0.27904565]
[1750281242999,1.17974805,104550.0,104540.0,0.27904565]
[1750281243234,1.17974805,104550.0,104540.0,0.0686]
[1750281243444,0.58660945,104550.0,104540.0,0.0686]
[1750281243664,1.17974805,104550.0,104540.0,0.0686]
[1750281247911,1.17974805,104550.0,104540.0,0.06792]
[1750281250415,1.17974805,104550.0,104540.0,0.06492]
[1750281250832,1.17974805,104550.0,104540.0,0.0328]
[1750281251051,0.20087985,104540.0,104530.0,0.0789291]
[1750281251259,0.56005246,104520.0,104510.0,0.20095291]
[1750281251461,1.15319106,104520.0,104510.0,0.22965737]
[1750281251669,1.15319115,104520.0,104510.0,0.23922528]
[1750281251879,1.15319115,104520.0,104510.0,0.26942528]
[1750281252089,0.66527074,104520.0,104510.0,0.26942464]
[1750281252547,0.66527046,104520.0,104510.0,0.27542464]
[1750281252753,0.66527037,104520.0,104510.0,0.26942464]
[1750281252984,0.66527037,104520.0,104510.0,0.27142464]
[1750281253825,1.16275805,104520.0,104510.0,0.26185682]
[1750281253952,1.17232559,104520.0,104510.0,0.25328891]
[1750281254159,1.17232559,104520.0,104510.0,0.28438891]
[1750281254372,1.1531917,104520.0,104510.0,0.25576924]
[1750281254580,1.14362452,104520.0,104510.0,0.26533761]
[1750281254801,1.14362452,104520.0,104510.0,0.27490588]